fUST/lending_fUST_20241230
["ID","MTS","AMOUNT","RATE_DAILY","PERIOD"]
[347147064,1735527039364,-500.0,0.00016177,2]
[347147065,1735527039373,-500.0,0.00016177,2]
[347147066,1735527039383,-500.0,0.00016177,2]
[347147067,1735527039392,-500.0,0.00016177,2]
[347147068,1735527039401,-500.0,0.00016177,2]
[347147069,1735527039411,-500.0,0.00016177,2]
[347147070,1735527039421,-500.0,0.00016177,2]
[347147071,1735527039430,-500.0,0.00016177,2]
[347147072,1735527039439,-500.0,0.00016177,2]
[347147073,1735527039449,-500.0,0.00016177,2]
[347147074,1735527039458,-500.0,0.00016177,2]
[347147075,1735527039467,-503.87836682,0.00016177,2]
[347147076,1735527039477,-500.0,0.00016177,2]
[347147077,1735527039486,-500.0,0.00016177,2]
[347147078,1735527039496,-504.71520153,0.00016177,2]
[347147079,1735527039506,-500.0,0.00016177,2]
[347147080,1735527039515,-500.0,0.00016177,2]
[347147081,1735527039525,-500.0,0.00016177,2]
[347147082,1735527039610,-501.3754113,0.00016177,2]
[347147083,1735527039621,-500.0,0.00016177,2]
[347147084,1735527039630,-500.0,0.00016177,2]
[347147085,1735527039639,-500.0,0.00016177,2]
[347147086,1735527039648,-500.0,0.00016177,2]
[347147087,1735527039658,-500.0,0.00016177,2]
[347147088,1735527039667,-502.22416544,0.00016177,2]
[347147089,1735527039676,-513.45816554,0.00016177,2]
[347147090,1735527039686,-500.0,0.00016177,2]
[347147092,1735527039695,-522.73626053,0.00016177,2]
[347147093,1735527039705,-600.68008032,0.00016177,2]
[347147094,1735527039715,-500.0,0.00016177,2]
[347147095,1735527039724,-500.0,0.00016177,2]
[347147096,1735527039733,-528.52330147,0.00016177,2]
[347147097,1735527039743,-500.0,0.00016177,2]
[347147098,1735527039752,-500.0,0.00016177,2]
[347147099,1735527039761,-500.0,0.00016177,2]
[347147100,1735527039771,-290.98923063,0.00016177,2]
[347147101,1735527039781,-500.0,0.00016177,2]
[347147102,1735527039791,-513.61315197,0.00016177,2]
[347147103,1735527039801,-501.93266953,0.00016177,2]
[347147104,1735527039810,-500.0,0.00016177,2]
[347147105,1735527039820,-500.0,0.00016177,2]
[347147106,1735527039830,-500.0,0.00016177,2]
[347147107,1735527039839,-505.03495004,0.00016177,2]
[347147108,1735527039848,-500.0,0.00016177,2]
[347147109,1735527039858,-500.0,0.00016177,2]
[347147110,1735527039868,-500.0,0.00016177,2]
[347147111,1735527039877,-500.0,0.00016177,2]
[347147112,1735527039886,-500.0,0.00016177,2]
[347147113,1735527039896,-500.0,0.00016177,2]
[347147114,1735527039905,-500.0,0.00016177,2]
[347147115,1735527039914,-500.0,0.00016177,2]
[347147116,1735527039923,-500.0,0.00016177,2]
[347147117,1735527039933,-500.0,0.00016177,2]
[347147118,1735527039942,-500.0,0.00016177,2]
[347147119,1735527039952,-506.34960974,0.00016177,2]
[347147120,1735527039961,-500.0,0.00016177,2]
[347147121,1735527039970,-507.33638209,0.00016177,2]
[347147122,1735527039980,-500.0,0.00016177,2]
[347147123,1735527039990,-511.50178136,0.00016177,2]
[347147124,1735527039999,-500.0,0.00016177,2]
[347147125,1735527040009,-500.0,0.00016177,2]
[347147127,1735527040019,-500.0,0.00016177,2]
[347147129,1735527040028,-500.0,0.00016177,2]
[347147131,1735527040038,-511.20814654,0.00016177,2]
[347147132,1735527040047,-512.23041465,0.00016177,2]
[347147134,1735527040056,-3552.76,0.00016177,2]
[347147136,1735527040065,-507.05562354,0.00016177,2]
[347147138,1735527040075,-500.0,0.00016177,2]
[347147139,1735527040083,-330.16685633,0.00016177,2]
[347147140,1735527040093,-500.0,0.00016177,2]
[347147141,1735527040102,-500.0,0.00016177,2]
[347147142,1735527040110,-433.27384289,0.00016177,2]
[347147144,1735527040119,-500.0,0.00016177,2]
[347147145,1735527040128,-500.0,0.00016177,2]
[347147146,1735527040137,-505.31061964,0.00016177,2]
[347147147,1735527040146,-500.0,0.00016177,2]
[347147148,1735527040155,-500.0,0.00016178,2]
[347147149,1735527040164,-493.28256153,0.00016178,2]
[347147150,1735527040173,-500.0,0.00016178,2]
[347147151,1735527040182,-500.0,0.00016178,2]
[347147152,1735527040191,-500.0,0.00016178,2]
[347147153,1735527040200,-500.0,0.00016178,2]
[347147154,1735527040209,-500.0,0.00016178,2]
[347147155,1735527040218,-500.0,0.00016178,2]
[347147156,1735527040227,-500.0,0.00016178,2]
[347147157,1735527040236,-500.0,0.00016178,2]
[347147158,1735527040245,-500.0,0.00016178,2]
[347147159,1735527040254,-500.0,0.00016178,2]
[347147160,1735527040263,-500.0,0.00016178,2]
[347147161,1735527040274,-500.0,0.00016178,2]
[347147162,1735527040283,-500.0,0.00016178,2]
[347147163,1735527040295,-500.0,0.00016178,2]
[347147164,1735527040305,-500.0,0.00016178,2]
[347147165,1735527040314,-500.0,0.00016181,2]
[347147166,1735527040323,-697.33,0.00016182,2]
[347147167,1735527040333,-623.65,0.0001638,2]
[347147168,1735527040342,-500.0,0.0001638,2]
[347147169,1735527040351,-500.0,0.0001638,2]
[347147170,1735527040361,-500.0,0.0001638,2]
[347147171,1735527040370,-500.0,0.0001638,2]
[347147172,1735527040380,-500.0,0.0001638,2]
[347147173,1735527040389,-406.90432773,0.0001638,2]
[347147174,1735527040399,-500.0,0.0001638,2]
[347147175,1735527040408,-155.61194621,0.00016403,2]
[347147176,1735527040417,-553.62002876,0.00016404,2]
[347147177,1735527040427,-500.0,0.00016451,2]
[347147178,1735527040437,-500.0,0.00016451,2]
[347147179,1735527040449,-500.0,0.00016451,2]
[347147180,1735527040462,-500.0,0.00016451,2]
[347147181,1735527040475,-500.0,0.00016451,2]
[347147182,1735527040487,-500.0,0.00016451,2]
[347147183,1735527040498,-500.0,0.00016451,2]
[347147184,1735527040510,-500.0,0.00016451,2]
[347147185,1735527040522,-500.0,0.00016451,2]
[347147186,1735527040535,-360.24690817,0.00016451,2]
[347147187,1735527040547,-500.0,0.00016451,2]
[347147188,1735527040559,-500.0,0.00016451,2]
[347147189,1735527040572,-500.0,0.00016451,2]
[347147190,1735527040584,-500.0,0.00016451,2]
[347147191,1735527040597,-500.0,0.00016451,2]
[347147192,1735527040610,-583.13685149,0.00016451,2]
[347147193,1735527040622,-500.0,0.00016451,2]
[347147194,1735527040633,-500.0,0.00016451,2]
[347147195,1735527040644,-500.0,0.00016451,2]
[347147196,1735527040655,-309.5,0.00016451,2]
[347147197,1735527040667,-500.0,0.00016451,2]
[347147198,1735527040679,-500.0,0.00016451,2]
[347147199,1735527040690,-500.0,0.00016451,2]
[347147200,1735527040702,-500.0,0.00016451,2]
[347147201,1735527040712,-500.0,0.00016451,2]
[347147202,1735527040723,-500.0,0.00016451,2]
[347147203,1735527040734,-500.0,0.00016451,2]
[347147204,1735527040746,-500.0,0.00016451,2]
[347147205,1735527040757,-500.0,0.00016451,2]
[347147206,1735527040769,-500.0,0.00016451,2]
[347147207,1735527040781,-500.0,0.00016451,2]
[347147208,1735527040797,-500.0,0.00016451,2]
[347147209,1735527040809,-500.0,0.00016451,2]
[347147210,1735527040821,-500.0,0.00016451,2]
[347147211,1735527040833,-513.56149667,0.00016451,2]
[347147212,1735527040846,-520.27161013,0.00016451,2]
[347147213,1735527040856,-500.0,0.00016451,2]
[347147214,1735527040867,-500.0,0.00016451,2]
[347147215,1735527040879,-513.69125759,0.00016451,2]
[347147216,1735527040889,-503.95605026,0.00016451,2]
[347147217,1735527040902,-642.58925368,0.00016451,2]
[347147218,1735527040915,-500.0,0.00016451,2]
[347147219,1735527040928,-500.0,0.00016451,2]
[347147220,1735527040937,-218.44143862,0.00016451,2]
[347147221,1735527040948,-500.0,0.00016451,2]
[347147222,1735527040959,-500.0,0.00016451,2]
[347147223,1735527040971,-505.68695102,0.00016451,2]
[347147224,1735527040984,-3552.76,0.00016451,2]
[347147225,1735527040994,-500.0,0.00016451,2]
[347147226,1735527041005,-500.0,0.00016451,2]
[347147227,1735527041014,-502.3714404,0.00016451,2]
[347147228,1735527041025,-644.26628596,0.00016451,2]
[347147229,1735527041036,-500.0,0.00016451,2]
[347147230,1735527041047,-500.87083951,0.00016452,2]
[347147231,1735527041058,-500.0,0.00016452,2]
[347147232,1735527041069,-284.16048759,0.00016452,2]
[347147233,1735527041079,-500.0,0.00016452,2]
[347147234,1735527041090,-500.0,0.00016452,2]
[347147235,1735527041100,-500.0,0.00016452,2]
[347147236,1735527041111,-500.0,0.00016452,2]
[347147237,1735527041121,-502.21957687,0.00016452,2]
[347147238,1735527041132,-500.0,0.00016452,2]
[347147239,1735527041143,-500.0,0.00016452,2]
[347147240,1735527041154,-500.0,0.00016452,2]
[347147241,1735527041164,-500.0,0.00016452,2]
[347147242,1735527041175,-503.5151075,0.00016452,2]
[347147243,1735527041186,-500.0,0.00016452,2]
[347147244,1735527041197,-500.0,0.00016452,2]
[347147245,1735527041207,-500.0,0.00016452,2]
[347147246,1735527041218,-276.81811098,0.00016455,2]
[347147247,1735527041228,-697.33,0.00016456,2]
[347147248,1735527041240,-623.65,0.00016654,2]
[347147249,1735527041251,-500.0,0.00016654,2]
[347147250,1735527041262,-190.45374438,0.00016654,2]
[347147251,1735527041272,-500.0,0.00016654,2]
[347147252,1735527041283,-500.0,0.00016654,2]
[347147253,1735527041297,-500.0,0.00016654,2]
[347147254,1735527041308,-500.0,0.00016725,2]
[347147255,1735527041319,-470.91,0.00016725,2]
[347147256,1735527041330,-500.0,0.00016725,2]
[347147257,1735527041342,-500.0,0.00016725,2]
[347147258,1735527041353,-500.0,0.00016725,2]
[347147259,1735527041365,-500.0,0.00016725,2]
[347147260,1735527041377,-500.0,0.00016725,2]
[347147261,1735527041388,-500.0,0.00016725,2]
[347147262,1735527041399,-378.19,0.00016725,2]
[347147263,1735527041409,-500.0,0.00016725,2]
[347147264,1735527041420,-500.0,0.00016725,2]
[347147265,1735527041431,-500.0,0.00016725,2]
[347147266,1735527041442,-500.0,0.00016725,2]
[347147267,1735527041550,-500.0,0.00016725,2]
[347147268,1735527041562,-233.34,0.00016725,2]
[347147269,1735527041571,-500.0,0.00016725,2]
[347147270,1735527041580,-552.25415545,0.00016725,2]
[347147271,1735527041589,-500.0,0.00016725,2]
[347147272,1735527041598,-500.0,0.00016725,2]
[347147273,1735527041607,-517.22321591,0.00016725,2]
[347147274,1735527041616,-507.98494611,0.00016725,2]
[347147275,1735527041625,-500.0,0.00016725,2]
[347147276,1735527041634,-375.33142984,0.00016725,2]
[347147277,1735527041643,-213.78274355,0.00016725,2]
[347147278,1735527041652,-500.0,0.00016725,2]
[347147279,1735527041661,-500.0,0.00016725,2]
[347147280,1735527041671,-500.0,0.00016725,2]
[347147281,1735527041680,-500.0,0.00016725,2]
[347147282,1735527041689,-500.0,0.00016725,2]
[347147283,1735527041698,-235.79852438,0.00016725,2]
[347147284,1735527041707,-500.0,0.00016725,2]
[347147285,1735527041717,-544.34330763,0.00016725,2]
[347147286,1735527041726,-500.0,0.00016725,2]
[347147287,1735527041735,-500.0,0.00016725,2]
[347147288,1735527041744,-500.0,0.00016725,2]
[347147289,1735527041754,-3552.76,0.00016725,2]
[347147290,1735527041763,-515.72997517,0.00016725,2]
[347147291,1735527041772,-500.0,0.00016725,2]
[347147292,1735527041781,-500.0,0.00016725,2]
[347147293,1735527041791,-500.0,0.00016726,2]
[347147294,1735527041800,-500.0,0.00016726,2]
[347147295,1735527041809,-512.60567692,0.00016726,2]
[347147296,1735527041818,-500.0,0.00016726,2]
[347147297,1735527041827,-500.0,0.00016726,2]
[347147298,1735527041837,-504.65165481,0.00016726,2]
[347147299,1735527041846,-500.0,0.00016726,2]
[347147300,1735527041855,-534.3,0.00016726,2]
[347147301,1735527041864,-500.0,0.00016726,2]
[347147302,1735527041874,-500.0,0.00016726,2]
[347147303,1735527041883,-500.0,0.00016726,2]
[347147304,1735527041892,-697.33,0.0001673,2]
[347147305,1735527041901,-623.65,0.00016928,2]
[347147306,1735527041911,-500.0,0.00016928,2]
[347147307,1735527041919,-500.0,0.00016928,2]
[347147308,1735527041929,-500.0,0.00016928,2]
[347147309,1735527041938,-500.0,0.00016928,2]
[347147310,1735527041946,-500.0,0.00016999,2]
[347147311,1735527041955,-500.0,0.00016999,2]
[347147312,1735527041965,-500.0,0.00016999,2]
[347147313,1735527041973,-500.0,0.00016999,2]
[347147314,1735527041982,-500.0,0.00016999,2]
[347147315,1735527041991,-500.0,0.00016999,2]
[347147316,1735527042000,-500.0,0.00016999,2]
[347147317,1735527042009,-232.51,0.00016999,2]
[347147318,1735527042018,-500.0,0.00016999,2]
[347147319,1735527042027,-500.0,0.00016999,2]
[347147320,1735527042037,-500.0,0.00016999,2]
[347147321,1735527042046,-500.0,0.00016999,2]
[347147322,1735527042055,-500.0,0.00016999,2]
[347147323,1735527042066,-500.0,0.00016999,2]
[347147324,1735527042075,-500.0,0.00016999,2]
[347147325,1735527042085,-500.0,0.00016999,2]
[347147326,1735527042094,-500.0,0.00016999,2]
[347147327,1735527042103,-224.91389235,0.00016999,2]
[347147328,1735527042113,-500.0,0.00016999,2]
[347147329,1735527042122,-500.0,0.00016999,2]
[347147330,1735527042131,-500.0,0.00016999,2]
[347147331,1735527042140,-500.0,0.00016999,2]
[347147332,1735527042149,-500.0,0.00016999,2]
[347147333,1735527042159,-214.5372972,0.00016999,2]
[347147334,1735527042168,-500.0,0.00016999,2]
[347147335,1735527042177,-3552.76,0.00016999,2]
[347147336,1735527042186,-500.0,0.00016999,2]
[347147337,1735527042195,-503.59132526,0.00017,2]
[347147338,1735527042204,-502.67242004,0.00017,2]
[347147339,1735527042214,-500.0,0.00017,2]
[347147340,1735527042223,-502.37053603,0.00017,2]
[347147341,1735527042233,-500.0,0.00017,2]
[347147342,1735527042243,-500.0,0.00017,2]
[347147343,1735527042252,-500.0,0.00017,2]
[347147344,1735527042262,-500.0,0.00017,2]
[347147345,1735527042272,-697.33,0.00017004,2]
[347147346,1735527042282,-623.65,0.00017202,2]
[347147347,1735527042297,-500.0,0.00017202,2]
[347147348,1735527042307,-479.87490285,0.00017202,2]
[347147349,1735527042316,-500.0,0.00017202,2]
[347147350,1735527042326,-500.0,0.00017202,2]
[347147351,1735527042335,-500.0,0.00017273,2]
[347147352,1735527042344,-500.0,0.00017273,2]
[347147353,1735527042353,-500.0,0.00017273,2]
[347147354,1735527042362,-378.55,0.00017273,2]
[347147355,1735527042372,-500.0,0.00017273,2]
[347147356,1735527042381,-500.0,0.00017273,2]
[347147357,1735527042391,-500.0,0.00017273,2]
[347147358,1735527042400,-500.0,0.00017273,2]
[347147359,1735527042409,-500.0,0.00017273,2]
[347147360,1735527042419,-500.0,0.00017273,2]
[347147361,1735527042428,-500.0,0.00017273,2]
[347147362,1735527042437,-500.0,0.00017273,2]
[347147363,1735527042447,-618.89519997,0.00017273,2]
[347147364,1735527042457,-500.0,0.00017273,2]
[347147365,1735527042466,-627.92,0.00017273,2]
[347147366,1735527042476,-500.0,0.00017273,2]
[347147367,1735527042486,-500.0,0.00017273,2]
[347147368,1735527042495,-500.0,0.00017273,2]
[347147369,1735527042504,-500.0,0.00017273,2]
[347147370,1735527042514,-500.0,0.00017273,2]
[347147371,1735527042524,-549.49345194,0.00017273,2]
[347147372,1735527042533,-500.0,0.00017273,2]
[347147373,1735527042546,-3552.76,0.00017273,2]
[347147374,1735527042556,-500.0,0.00017273,2]
[347147375,1735527042565,-500.0,0.00017274,2]
[347147376,1735527042575,-500.0,0.00017274,2]
[347147377,1735527042584,-500.0,0.00017274,2]
[347147378,1735527042595,-504.55431937,0.00017274,2]
[347147379,1735527042604,-500.0,0.00017274,2]
[347147380,1735527042613,-697.33,0.00017278,2]
[347147381,1735527042623,-500.0,0.00017348,2]
[347147382,1735527042632,-431.313,0.00017392,2]
[347147384,1735527042642,-623.65,0.00017476,2]
[347147386,1735527042651,-500.0,0.00017476,2]
[347147389,1735527042661,-401.05719359,0.00017476,2]
[347147392,1735527042670,-556.43379723,0.00017476,2]
[347147394,1735527042680,-500.0,0.00017547,2]
[347147396,1735527042688,-500.0,0.00017547,2]
[347147398,1735527042698,-500.0,0.00017547,2]
[347147400,1735527042707,-500.0,0.00017547,2]
[347147402,1735527042717,-500.0,0.00017547,2]
[347147404,1735527042726,-500.0,0.00017547,2]
[347147406,1735527042735,-628.68871136,0.00017547,2]
[347147407,1735527042744,-500.0,0.00017547,2]
[347147408,1735527042754,-500.0,0.00017547,2]
[347147409,1735527042763,-500.0,0.00017547,2]
[347147411,1735527042772,-500.0,0.00017547,2]
[347147413,1735527042782,-500.0,0.00017547,2]
[347147416,1735527042794,-500.0,0.00017547,2]
[347147419,1735527042803,-500.0,0.00017547,2]
[347147422,1735527042812,-507.21599213,0.00017547,2]
[347147424,1735527042822,-500.0,0.00017547,2]
[347147426,1735527042831,-500.0,0.00017547,2]
[347147428,1735527042840,-151.0,0.00017547,2]
[347147430,1735527042850,-500.0,0.00017547,2]
[347147432,1735527042859,-1477.169933,0.00017547,2]
[347147434,1735527042869,-1477.169933,0.00017547,2]
[347147436,1735527042878,-3552.76,0.00017547,2]
[347147438,1735527042887,-1909.898705,0.00017547,2]
[347147440,1735527042896,-1909.898705,0.00017547,2]
[347147442,1735527042905,-500.0,0.00017547,2]
[347147444,1735527042914,-500.0,0.00017548,2]
[347147446,1735527042923,-500.0,0.00017548,2]
[347147448,1735527042932,-539.61805232,0.00017548,2]
[347147450,1735527042941,-500.0,0.00017548,2]
[347147452,1735527042950,-697.33,0.00017552,2]
[347147454,1735527042959,-587.0,0.00017659,2]
[347147456,1735527042971,-623.65,0.0001775,2]
[347147458,1735527042980,-561.9,0.0001775,2]
[347147460,1735527042989,-500.0,0.00017821,2]
[347147462,1735527042998,-265.52574435,0.00017821,2]
[347147464,1735527043007,-500.0,0.00017821,2]
[347147466,1735527043016,-500.0,0.00017821,2]
[347147468,1735527043026,-412.80076114,0.00017821,2]
[347147470,1735527043035,-500.0,0.00017821,2]
[347147472,1735527043045,-500.0,0.00017821,2]
[347147474,1735527043054,-500.0,0.00017821,2]
[347147476,1735527043063,-500.0,0.00017821,2]
[347147478,1735527043073,-500.0,0.00017821,2]
[347147480,1735527043082,-500.0,0.00017821,2]
[347147482,1735527043091,-151.0,0.00017821,2]
[347147484,1735527043100,-500.0,0.00017821,2]
[347147486,1735527043110,-500.0,0.00017821,2]
[347147488,1735527043119,-510.11735979,0.00017821,2]
[347147490,1735527043128,-267.428163,0.00017821,2]
[347147492,1735527043137,-151.0,0.00017821,2]
[347147494,1735527043146,-267.428163,0.00017821,2]
[347147496,1735527043155,-225.290665,0.00017821,2]
[347147498,1735527043165,-440.009189,0.00017821,2]
[347147500,1735527043175,-440.009189,0.00017821,2]
[347147502,1735527043184,-500.0,0.00017821,2]
[347147504,1735527043194,-513.488563,0.00017821,2]
[347147506,1735527043203,-513.488563,0.00017821,2]
[347147508,1735527043213,-3552.76,0.00017821,2]
[347147510,1735527043222,-511.03719909,0.00017821,2]
[347147512,1735527043232,-151.0,0.00017821,2]
[347147514,1735527043241,-151.0,0.00017821,2]
[347147516,1735527043250,-616.07,0.00017822,2]
[347147518,1735527043259,-500.0,0.00017822,2]
[347147520,1735527043268,-697.33,0.00017826,2]
[347147521,1735527043278,-155.61194621,0.00017989,2]
[347147522,1735527043288,-623.65,0.00018024,2]
[347147523,1735527043300,-523.13431541,0.00018095,2]
[347147524,1735527043309,-500.0,0.00018095,2]
[347147525,1735527043319,-345.89812976,0.00018095,2]
[347147526,1735527043328,-500.0,0.00018095,2]
[347147527,1735527043339,-500.0,0.00018095,2]
[347147528,1735527043349,-500.0,0.00018095,2]
[347147529,1735527043359,-556.54536046,0.00018095,2]
[347147530,1735527043369,-500.0,0.00018095,2]
[347147531,1735527043378,-500.0,0.00018095,2]
[347147532,1735527043387,-500.0,0.00018095,2]
[347147533,1735527043397,-3552.76,0.00018095,2]
[347147534,1735527043407,-469.53509366,0.00018096,2]
[347147535,1735527043416,-697.33,0.000181,2]
[347147536,1735527043425,-500.0,0.00018287,2]
[347147537,1735527043435,-623.65,0.00018298,2]
[347147538,1735527043444,-500.0,0.00018369,2]
[347147539,1735527043454,-500.0,0.00018369,2]
[347147540,1735527043463,-215.75984836,0.00018369,2]
[347147541,1735527043472,-519.15839706,0.00018369,2]
[347147542,1735527043481,-500.0,0.00018369,2]
[347147543,1735527043491,-3552.76,0.00018369,2]
[347147544,1735527043500,-697.33,0.00018374,2]
[347147545,1735527043509,-500.0,0.00018412,2]
[347147546,1735527043518,-623.65,0.00018572,2]
[347147547,1735527043527,-500.0,0.00018643,2]
[347147548,1735527043537,-500.0,0.00018643,2]
[347147549,1735527043546,-3552.76,0.00018643,2]
[347147550,1735527043556,-697.33,0.00018648,2]
[347147551,1735527043565,-623.65,0.00018846,2]
[347147552,1735527043574,-500.0,0.00018917,2]
[347147553,1735527043584,-151.0,0.00018917,2]
[347147554,1735527043593,-500.0,0.00018917,2]
[347147555,1735527043602,-1477.169933,0.00018917,2]
[347147556,1735527043689,-1477.169933,0.00018917,2]
[347147557,1735527043713,-3552.76,0.00018917,2]
[347147558,1735527043722,-1909.898705,0.00018917,2]
[347147559,1735527043731,-1909.898705,0.00018917,2]
[347147560,1735527043741,-697.33,0.00018922,2]
[347147561,1735527043750,-623.65,0.0001912,2]
[347147562,1735527043759,-193.176495,0.00019178,2]
[347147563,1735527043768,-500.0,0.00019191,2]
[347147564,1735527043777,-151.0,0.00019191,2]
[347147565,1735527043787,-267.428163,0.00019191,2]
[347147566,1735527043797,-267.428163,0.00019191,2]
[347147567,1735527043806,-500.0,0.00019191,2]
[347147568,1735527043816,-3552.76,0.00019191,2]
[347147569,1735527043825,-697.33,0.00019196,2]
[347147570,1735527043834,-500.0,0.00019264,2]
[347147571,1735527043843,-352.5060848,0.00019288,2]
[347147572,1735527043852,-278.606813,0.00019288,2]
[347147573,1735527043861,-286.875896,0.00019332,2]
[347147574,1735527043870,-823.0,0.00019332,2]
[347147575,1735527043879,-623.65,0.00019393,2]
[347147576,1735527043888,-355.1757189,0.00019441,2]
[347147577,1735527043897,-352.5060848,0.00019441,2]
[347147578,1735527043906,-544.001028,0.00019465,2]
[347147579,1735527043915,-151.0,0.00019465,2]
[347147580,1735527043925,-440.009189,0.00019465,2]
[347147581,1735527043934,-440.009189,0.00019465,2]
[347147582,1735527043943,-500.0,0.00019465,2]
[347147583,1735527043952,-513.488563,0.00019465,2]
[347147584,1735527043961,-513.488563,0.00019465,2]
[347147585,1735527043970,-3552.76,0.00019465,2]
[347147586,1735527043980,-151.0,0.00019465,2]
[347147587,1735527043989,-151.0,0.00019465,2]
[347147588,1735527043999,-697.33,0.0001947,2]
[347147589,1735527044008,-155.61194621,0.00019574,2]
[347147590,1735527044017,-218.4576854,0.00019578,2]
[347147591,1735527044025,-156.7958142,0.00019578,2]
[347147592,1735527044036,-151.0,0.000196,2]
[347147593,1735527044045,-623.65,0.00019667,2]
[347147594,1735527044054,-7887.63387895,0.00019729,2]
[347147595,1735527044063,-843.191926,0.00019731,2]
[347147596,1735527044072,-843.191926,0.00019731,2]
[347147597,1735527044081,-151.0,0.00019731,2]
[347147598,1735527044091,-151.0,0.00019731,2]
[347147599,1735527044100,-1493.946736,0.00019731,2]
[347147600,1735527044109,-1493.946736,0.00019731,2]
[347147601,1735527044118,-276.97635416,0.00019739,2]
[347147602,1735527044127,-3552.76,0.00019739,2]
[347147603,1735527044136,-9039.29839634,0.0001974,2]
[347147604,1735527044146,-697.33,0.00019744,2]
[347147605,1735527044155,-536.71,0.0001979,2]
[347147606,1735527044163,-1009.61,0.000198,5]
[347147607,1735527044172,-151.0,0.000198,2]
[347147608,1735527044182,-5396.11814943,0.00019899,2]
[347147609,1735527044191,-151.0,0.000199,2]
[347147610,1735527044200,-151.0,0.000199,2]
[347147611,1735527044209,-3026.86810114,0.000199,2]
[347147612,1735527044217,-623.65,0.00019941,2]
[347147613,1735527044227,-160.0,0.00019999,2]
[347147614,1735527044236,-237.65124468,0.00019999,2]
[347147615,1735527044244,-293.289015,0.00019999,2]
[347147616,1735527044253,-891.36959,0.00019999,2]
[347147617,1735527044262,-151.0,0.00019999,2]
[347147618,1735527044272,-891.36959,0.00019999,2]
[347147619,1735527044281,-151.0,0.00019999,2]
[347147620,1735527044293,-152.143484,0.00019999,2]
[347147621,1735527044302,-151.0,0.00019999,2]
[347147622,1735527044311,-151.0,0.00019999,2]
[347147623,1735527044321,-294.347478,0.00019999,2]
[347147624,1735527044330,-294.347478,0.00019999,2]
[347147625,1735527044340,-241.442148,0.00019999,2]
[347147626,1735527044349,-241.442148,0.00019999,2]
[347147627,1735527044359,-241.442148,0.00019999,2]
[347147628,1735527044368,-241.442148,0.00019999,2]
[347147629,1735527044377,-430.32221,0.00019999,2]
[347147630,1735527044387,-430.32221,0.00019999,2]
[347147631,1735527044396,-430.32221,0.00019999,2]
[347147632,1735527044405,-430.32221,0.00019999,2]
[347147633,1735527044414,-151.0,0.00019999,2]
[347147634,1735527044423,-202.083931,0.00019999,2]
[347147635,1735527044433,-203.76658,0.00019999,2]
[347147636,1735527044442,-203.76658,0.00019999,2]
[347147637,1735527044451,-843.191926,0.00019999,2]
[347147638,1735527044460,-203.76658,0.00019999,2]
[347147639,1735527044470,-203.76658,0.00019999,2]
[347147640,1735527044479,-843.191926,0.00019999,2]
[347147641,1735527044488,-151.0,0.00019999,2]